bitfinex/quotes_BTCUSD_20210101
["timestamp","ask_amount","ask_price","bid_price","bid_amount"]
[1609472490392,0.9916,29339.0,29334.0,0.00201005]
[1609472490595,0.231253,29338.0,29333.0,0.00200399]
[1609472490794,0.2,29338.0,29333.0,0.00200399]
[1609472491002,0.94824195,29349.0,29333.0,0.00200399]
[1609472491003,0.0002,29344.0,29334.0,0.36063]
[1609472491197,0.9916,29343.0,29334.0,0.36063]
[1609472492198,0.0002,29345.0,29334.0,0.36263093]
[1609472492422,0.14061139,29347.0,29334.0,0.36263093]
[1609472492720,0.14061139,29347.0,29336.0,0.50563]
[1609472492721,0.2196809,29346.0,29336.0,0.50563]
[1609472493118,0.0003809,29346.0,29336.0,0.36063]
[1609472493314,0.14041139,29347.0,29336.0,0.36063]
[1609472493626,0.14079229,29348.0,29341.0,0.5108]
[1609472493923,0.36063,29347.0,29341.0,0.5108]
[1609472494622,0.3610109,29347.0,29341.0,0.5108]
[1609472495116,0.36063,29347.0,29341.0,0.5108]
[1609472495618,0.36063,29347.0,29338.0,0.681]
[1609472495922,0.36063,29349.0,29338.0,0.681]
[1609472496122,0.031253,29347.0,29338.0,0.681]
[1609472496428,0.39409812,29345.0,29338.0,0.676]
[1609472496620,0.9916,29344.0,29338.0,0.676]
[1609472496827,0.031253,29343.0,29333.0,0.48140069]
[1609472497022,0.9766,29342.0,29333.0,0.00200069]
[1609472497226,0.9766,29342.0,29332.0,0.00200182]
[1609472497227,0.36063,29341.0,29332.0,0.00200182]
[1609472497421,0.9766,29340.0,29332.0,0.00200182]
[1609472497955,0.36063,29339.0,29332.0,0.00200182]
[1609472498148,1.33723,29339.0,29332.0,0.00200182]
[1609472498658,0.0002,29338.0,29331.0,0.68310315]
[1609472498852,0.0002,29338.0,29332.0,0.36063]
[1609472499050,0.0002,29342.0,29332.0,0.36063]
[1609472499252,0.0002,29342.0,29332.0,0.00200446]
[1609472499253,1.33723,29341.0,29332.0,0.00200446]
[1609472499553,1.2068,29340.0,29332.0,0.00200446]
[1609472499854,1.2068,29340.0,29333.0,0.00200636]
[1609472499855,0.9766,29339.0,29333.0,0.00200636]
[1609472500057,1.33743,29339.0,29334.0,0.00200728]
[1609472500451,0.36083,29339.0,29334.0,0.00200728]
[1609472500648,0.36063,29339.0,29334.0,0.00200728]
[1609472502101,0.0002,29340.0,29334.0,0.00200728]
[1609472502102,0.0002,29340.0,29335.0,0.36063]
[1609472502298,0.03554162,29349.0,29339.0,0.36063]
[1609472502299,0.0002,29342.0,29339.0,0.36063]
[1609472502504,0.0002,29342.0,29341.0,4.21063]
[1609472503003,0.38306171,29353.0,29343.0,0.36063]
[1609472503196,0.38306171,29353.0,29343.0,0.90541418]
[1609472503733,0.5234731,29353.0,29345.0,1.0]
[1609472503929,0.5234731,29353.0,29346.0,0.36063]
[1609472504239,0.5234731,29353.0,29348.0,0.36063]
[1609472504440,0.5234731,29353.0,29347.0,0.5106]
[1609472504441,1.33723,29352.0,29347.0,0.5106]
[1609472504637,0.031253,29350.0,29347.0,0.5106]
[1609472504844,3.41063,29348.0,29347.0,1.0]
[1609472505036,4.38723,29348.0,29347.0,1.0]
[1609472505240,4.85723,29348.0,29347.0,1.0]
[1609472505433,3.88063,29348.0,29347.0,1.0]
[1609472505639,4.85723,29348.0,29347.0,1.0]
[1609472506237,4.85723,29348.0,29342.0,0.6809]
[1609472506238,1.03063,29348.0,29342.0,1.6809]
[1609472506443,0.0002,29349.0,29342.0,1.6809]
[1609472506640,0.05448,29350.0,29342.0,1.6809]
[1609472506641,0.36083,29348.0,29342.0,1.6809]
[1609472506939,0.0002,29348.0,29343.0,0.36063]
[1609472507239,0.36063,29347.0,29342.0,1.6809]
[1609472507459,0.54167,29347.0,29342.0,1.6809]
[1609472507763,0.18104,29347.0,29343.0,0.36063]
[1609472508552,0.18104,29347.0,29344.0,0.36063]
[1609472508851,0.18104,29347.0,29343.0,0.36063]
[1609472509054,0.14041139,29354.0,29343.0,1.12133]
[1609472509055,0.0002,29352.0,29343.0,1.12133]
[1609472509252,0.36063,29351.0,29343.0,0.5107]
[1609472509651,0.36083,29351.0,29343.0,0.5107]
[1609472510755,0.36063,29351.0,29343.0,0.5107]
[1609472511252,0.36083,29351.0,29343.0,0.5107]
[1609472511453,0.185,29350.0,29343.0,0.5107]
[1609472511760,0.031253,29349.0,29343.0,0.5107]
[1609472511959,0.0002,29350.0,29343.0,0.5107]
[1609472512158,0.0002,29350.0,29344.0,0.36063]
[1609472512560,0.0002,29351.0,29344.0,0.36063]
[1609472513008,0.00227145,29352.0,29345.0,0.28]
[1609472513514,0.36063,29351.0,29348.0,0.5106]
[1609472513814,0.36083,29351.0,29348.0,0.5106]
[1609472514009,0.0002,29351.0,29348.0,0.5106]
[1609472514209,0.00641323,29352.0,29348.0,0.5106]
[1609472514908,0.00641323,29352.0,29348.0,0.51015755]
[1609472515312,0.00621276,29351.0,29348.0,0.51015755]
[1609472515512,0.205,29350.0,29348.0,0.51015755]
[1609472515812,0.98301276,29351.0,29348.0,0.51015755]
[1609472516210,0.00641276,29351.0,29348.0,0.51015755]
[1609472516412,0.00227092,29351.0,29348.0,0.51015755]
[1609472516757,0.00762521,29352.0,29348.0,0.51015755]
[1609472516959,0.36477141,29351.0,29348.0,0.51015755]
[1609472517464,1.54137141,29351.0,29346.0,1.6808]
[1609472517661,0.266253,29349.0,29346.0,1.0]
[1609472518262,1.207853,29349.0,29341.0,0.681]
[1609472518468,1.21006812,29348.0,29341.0,0.681]
[1609472518681,1.53723,29347.0,29336.0,1.0]
[1609472518874,0.031253,29345.0,29336.0,1.0]
[1609472519182,1.1766,29344.0,29332.0,0.4515]
[1609472519372,1.53723,29343.0,29332.0,0.4515]
[1609472519574,0.9766,29343.0,29331.0,0.7521403]
[1609472519777,0.2,29343.0,29331.0,0.0006403]
[1609472520075,0.2,29343.0,29334.0,0.5109]
[1609472520076,0.23346812,29342.0,29334.0,0.5109]
[1609472520276,0.36063,29341.0,29334.0,0.5109]
[1609472520514,0.71914,29341.0,29334.0,0.5109]
[1609472520713,0.0002,29340.0,29334.0,0.5109]
[1609472521017,0.031253,29339.0,29334.0,0.5109]
[1609472521211,0.031253,29339.0,29332.0,0.5109]
[1609472521420,1.208053,29339.0,29327.0,0.0002]
[1609472521718,1.4271792,29337.0,29327.0,0.0002]
[1609472521918,0.031253,29334.0,29327.0,0.0002]
[1609472522118,0.9766,29333.0,29327.0,0.0002]
[1609472522322,0.020974,29328.0,29327.0,0.0002]
[1609472522521,0.247624,29328.0,29327.0,0.0002]
[1609472522913,0.28109212,29328.0,29327.0,0.0002]
[1609472523318,0.61289514,29328.0,29327.0,0.0002]
[1609472523513,0.29184935,29328.0,29327.0,0.0002]
[1609472524275,0.25838123,29328.0,29327.0,0.0002]
[1609472524414,1.23498123,29328.0,29327.0,0.0002]
[1609472524617,1.61344935,29328.0,29327.0,0.0002]
[1609472526329,1.57998123,29328.0,29327.0,0.0002]
[1609472526835,1.61344935,29328.0,29327.0,0.0002]
[1609472528036,0.63684935,29328.0,29327.0,0.0002]
[1609472528234,0.29184935,29328.0,29327.0,0.0002]
[1609472528733,0.62365237,29328.0,29327.0,0.0002]
[1609472529539,0.25838123,29328.0,29327.0,0.0002]
[1609472530140,0.59018425,29328.0,29327.0,0.0002]
[1609472530338,0.29184935,29328.0,29327.0,0.0002]
[1609472531241,0.25838123,29328.0,29327.0,0.0002]
[1609472532291,0.29184935,29328.0,29327.0,0.0002]
[1609472533195,0.57274935,29328.0,29317.0,0.5084]
[1609472533395,0.47680302,29327.0,29317.0,0.5084]
[1609472533596,0.37846812,29327.0,29317.0,0.5084]
[1609472533991,0.37866812,29327.0,29317.0,0.5084]
[1609472534893,0.23366812,29327.0,29317.0,0.5084]
[1609472535097,0.561212,29326.0,29317.0,0.5084]
[1609472535395,0.361212,29326.0,29317.0,0.5084]
[1609472536896,0.561212,29326.0,29317.0,0.5084]
[1609472537095,0.361212,29326.0,29317.0,0.5084]
[1609472537401,0.561212,29326.0,29317.0,0.5084]
[1609472539805,0.0002,29325.0,29317.0,0.5084]
[1609472540011,0.361012,29324.0,29317.0,0.5084]
[1609472540209,0.0002,29325.0,29317.0,0.5084]
[1609472540409,0.361012,29324.0,29317.0,0.5084]
[1609472540607,0.2002,29326.0,29317.0,0.5084]
[1609472540809,0.361012,29325.0,29317.0,0.5084]
[1609472541009,0.361212,29325.0,29317.0,0.5084]
[1609472541408,0.501212,29325.0,29317.0,0.5084]
[1609472545336,1.477812,29325.0,29317.0,0.5084]
[1609472545540,0.9768,29324.0,29317.0,0.5084]
[1609472545741,0.361012,29320.0,29317.0,0.5084]
[1609472545950,0.011512,29317.0,29314.0,0.0004]
[1609472546141,0.04498012,29317.0,29314.0,0.0004]
[1609472546644,0.011512,29317.0,29314.0,0.0004]
[1609472549224,0.02227331,29317.0,29314.0,0.0004]
[1609472549429,0.05574143,29317.0,29314.0,0.0004]
[1609472551033,0.02227331,29317.0,29314.0,0.0004]
[1609472551230,0.05574143,29317.0,29314.0,0.0004]
[1609472551829,0.02227331,29317.0,29314.0,0.0004]
[1609472553555,0.01076131,29317.0,29314.0,0.0004]
[1609472553759,0.01076131,29317.0,29316.0,0.361412]
[1609472554557,0.01076131,29317.0,29316.0,0.0004]
[1609472555061,0.37177331,29317.0,29316.0,0.682]
[1609472556163,0.01076131,29317.0,29316.0,0.682]
[1609472556561,0.01076131,29317.0,29316.0,1.043012]
[1609472557162,0.01076131,29317.0,29316.0,1.038012]
[1609472558279,0.01076131,29317.0,29316.0,0.677]
[1609472559180,0.01076131,29317.0,29316.0,1.038012]
[1609472560187,0.16688131,29317.0,29316.0,1.038012]
[1609472560390,0.16688131,29317.0,29316.0,0.677]
[1609472562128,0.16688131,29317.0,29316.0,1.038012]
[1609472562330,0.01076131,29317.0,29316.0,5.088012]
[1609472562928,0.01076131,29317.0,29316.0,1.238012]
[1609472563133,0.01076131,29317.0,29316.0,1.233012]
[1609472563632,0.01076131,29317.0,29316.0,1.033012]
[1609472563871,0.05387,29322.0,29316.0,1.26763685]
[1609472564174,0.0002,29322.0,29317.0,0.361012]
[1609472564567,0.19884,29325.0,29317.0,0.361012]
[1609472564768,0.0002,29326.0,29317.0,0.361012]
[1609472565069,0.0002,29329.0,29321.0,0.6815]
[1609472565468,0.0002,29329.0,29322.0,0.361012]
[1609472565668,0.1852,29330.0,29322.0,0.361012]
[1609472566074,0.361012,29327.0,29321.0,0.6815]
[1609472567170,0.361012,29327.0,29325.0,0.5111]
[1609472567365,0.361212,29327.0,29325.0,0.5111]
[1609472567896,3.7,29326.0,29321.0,0.52152669]
[1609472568199,0.666512,29324.0,29321.0,0.52152669]
[1609472568993,0.011512,29324.0,29323.0,0.5111]
[1609472569197,0.011512,29324.0,29321.0,0.52152669]
[1609472570597,0.0002,29325.0,29321.0,0.52152669]
[1609472570799,0.00415033,29326.0,29321.0,0.52152669]
[1609472571103,0.361012,29325.0,29321.0,0.52152669]
[1609472571600,1.2366,29324.0,29321.0,0.52152669]
[1609472571899,0.011512,29323.0,29321.0,0.52152669]
[1609472572099,0.011512,29323.0,29316.0,0.672]
[1609472572504,0.011512,29323.0,29322.0,0.21009475]
[1609472573318,1.661512,29323.0,29322.0,0.21009475]
[1609472573525,0.266512,29323.0,29322.0,0.21009475]
[1609472573727,0.0002,29324.0,29322.0,0.21009475]
[1609472573922,0.0002,29325.0,29322.0,0.21009475]
[1609472574420,0.361012,29324.0,29322.0,0.21009475]
[1609472574623,0.0002,29325.0,29322.0,0.21009475]
[1609472574829,0.7,29323.0,29322.0,0.21009475]
[1609472575226,1.85,29323.0,29322.0,0.21009475]
[1609472575623,2.211012,29323.0,29322.0,0.21009475]
[1609472575927,2.596012,29323.0,29322.0,0.21009475]
[1609472576122,2.211012,29323.0,29322.0,0.21009475]
[1609472576427,4.211012,29323.0,29322.0,0.21009475]
[1609472576918,5.182612,29323.0,29322.0,0.21009475]
[1609472577077,4.206012,29323.0,29322.0,0.21009475]
[1609472577275,5.182612,29323.0,29322.0,0.21009475]
[1609472577579,5.086012,29323.0,29322.0,0.21009475]
[1609472577879,4.062612,29323.0,29322.0,0.21009475]
[1609472578075,3.086012,29323.0,29322.0,0.21009475]
[1609472578378,4.062612,29323.0,29322.0,0.21009475]
[1609472578682,0.33180302,29322.0,29317.0,0.19130407]
[1609472578924,0.33180302,29322.0,29314.0,1.157]
[1609472578925,3.861512,29318.0,29314.0,0.0004]
[1609472579122,3.861512,29318.0,29317.0,0.2561839]
[1609472579123,4.999692,29318.0,29317.0,0.2561839]
[1609472580322,5.33149502,29318.0,29317.0,0.2561839]
[1609472580523,4.023092,29318.0,29317.0,0.2561839]
[1609472580726,4.768092,29318.0,29317.0,0.2561839]
[1609472580919,5.09989502,29318.0,29317.0,0.2561839]
[1609472581125,4.768092,29318.0,29317.0,0.2561839]
[1609472581726,0.918092,29318.0,29317.0,0.2561839]
[1609472581929,0.0002,29321.0,29317.0,0.6171959]
[1609472582129,0.0002,29322.0,29318.0,0.361012]
[1609472582326,0.361012,29321.0,29314.0,0.0004]
[1609472583243,0.0002,29322.0,29315.0,0.361012]
[1609472583545,0.361012,29321.0,29314.0,0.0004]
[1609472583743,0.33615303,29323.0,29315.0,0.361012]
[1609472584044,0.361212,29322.0,29314.0,0.0004]
[1609472584244,0.2052,29322.0,29315.0,0.872212]
[1609472584441,0.0002,29322.0,29315.0,0.872212]
[1609472584742,0.00414997,29324.0,29315.0,0.872212]
[1609472586242,0.98074997,29324.0,29315.0,0.5112]
[1609472586447,0.00414997,29324.0,29315.0,0.5112]
[1609472586644,0.00434997,29324.0,29315.0,0.5112]
[1609472587050,0.0002,29324.0,29315.0,0.5112]
[1609472587246,0.33200302,29325.0,29316.0,0.361012]
[1609472587445,0.0002,29325.0,29315.0,0.5112]
[1609472587651,0.0002,29325.0,29316.0,0.361012]
[1609472587852,0.51554947,29326.0,29316.0,0.361012]
[1609472588266,0.541012,29325.0,29319.0,0.5112]
[1609472588661,0.361012,29325.0,29319.0,0.5112]
[1609472589568,1.337612,29325.0,29319.0,0.5112]
[1609472589762,0.361012,29325.0,29319.0,0.5112]
[1609472590166,1.337612,29325.0,29319.0,0.5112]
[1609472590367,1.337812,29325.0,29319.0,0.5112]
[1609472590567,0.205,29324.0,29319.0,0.5112]
[1609472590769,0.011512,29323.0,29319.0,0.5112]
[1609472591171,0.0002,29324.0,29319.0,0.5112]
[1609472591469,0.004149,29326.0,29319.0,0.5112]
[1609472591668,0.361012,29325.0,29319.0,0.5112]
[1609472591969,0.521012,29325.0,29319.0,0.5112]
[1609472592135,0.0002,29325.0,29320.0,0.361012]
[1609472592539,0.004149,29326.0,29320.0,0.361012]
[1609472593044,0.00414854,29327.0,29320.0,0.361012]
[1609472593242,0.0002,29329.0,29320.0,0.361012]
[1609472593243,0.41961354,29321.0,29320.0,0.361012]
[1609472593636,0.41961354,29321.0,29320.0,1.1305956]
[1609472593878,0.41961354,29321.0,29320.0,1.3305956]
[1609472594078,1.11961354,29321.0,29320.0,1.3305956]
[1609472594280,1.48062554,29321.0,29320.0,0.2584836]
[1609472594977,2.78062554,29321.0,29320.0,0.2584836]
[1609472595175,1.70062554,29321.0,29320.0,0.2584836]
[1609472596077,2.30062554,29321.0,29320.0,0.2584836]
[1609472596276,1.70062554,29321.0,29320.0,0.2584836]
[1609472596676,1.33961354,29321.0,29320.0,0.2584836]
[1609472597182,0.41961354,29321.0,29320.0,0.6194956]
[1609472597382,0.52109063,29321.0,29320.0,0.6194956]
[1609472597602,0.41961354,29321.0,29320.0,0.6194956]
[1609472599005,0.41961354,29321.0,29320.0,1.1306956]
[1609472601906,2.56961354,29321.0,29320.0,0.6194956]
[1609472602304,0.80461354,29321.0,29320.0,0.6194956]
[1609472602604,0.41961354,29321.0,29320.0,0.6194956]
[1609472605828,1.21961354,29321.0,29320.0,0.6194956]
[1609472606331,1.39961354,29321.0,29320.0,0.6194956]
[1609472609001,0.59961354,29321.0,29320.0,0.6194956]
[1609472609204,0.41961354,29321.0,29320.0,0.6194956]
[1609472611004,1.26961354,29321.0,29320.0,0.6194956]
[1609472611204,0.60961354,29321.0,29320.0,0.6194956]
[1609472611406,0.41961354,29321.0,29320.0,0.6194956]
[1609472611805,1.71961354,29321.0,29320.0,0.6194956]
[1609472612407,0.41961354,29321.0,29320.0,0.6194956]
[1609472612832,1.56961354,29321.0,29320.0,0.6194956]
[1609472613134,1.80461354,29321.0,29320.0,0.6194956]
[1609472613734,0.65461354,29321.0,29320.0,0.6194956]
[1609472613932,0.41961354,29321.0,29320.0,0.6194956]
[1609472614833,1.56961354,29321.0,29320.0,0.6194956]
[1609472615134,1.56961354,29321.0,29320.0,0.6144956]
[1609472615135,0.41961354,29321.0,29320.0,0.6144956]
[1609472617734,1.56961354,29321.0,29320.0,0.6144956]
[1609472617936,1.80461354,29321.0,29320.0,0.6144956]
[1609472618259,1.90461354,29321.0,29320.0,0.6144956]
[1609472618456,1.80461354,29321.0,29320.0,0.6144956]
[1609472619059,0.65461354,29321.0,29320.0,0.6144956]
[1609472619360,0.51961354,29321.0,29320.0,0.6144956]
[1609472619557,0.41961354,29321.0,29320.0,0.6144956]
[1609472619759,1.96961354,29321.0,29320.0,0.6144956]
[1609472619959,1.86961354,29321.0,29320.0,0.6144956]
[1609472620161,0.41961354,29321.0,29320.0,0.6144956]
[1609472620961,0.41461354,29321.0,29320.0,0.6144956]
[1609472621458,0.41461354,29321.0,29320.0,0.6044956]
[1609472621663,3.26461354,29321.0,29320.0,0.6044956]
[1609472622305,0.51461354,29321.0,29320.0,0.6044956]
[1609472622799,1.91461354,29321.0,29320.0,0.2434836]
[1609472623005,2.23461354,29321.0,29316.0,0.6816]
[1609472623200,2.23461354,29321.0,29317.0,0.361012]
[1609472623401,2.23461354,29321.0,29320.0,0.1933459]
[1609472623939,2.59562554,29321.0,29320.0,0.1933459]
[1609472624135,3.57222554,29321.0,29320.0,0.1933459]
[1609472624736,4.72222554,29321.0,29320.0,0.1933459]
[1609472625143,6.02222554,29321.0,29320.0,0.1102359]
[1609472625341,6.02222554,29321.0,29315.0,0.6816]
[1609472625342,0.33180302,29320.0,29314.0,0.1971732]
[1609472625546,0.33180302,29318.0,29314.0,0.1971732]
[1609472625847,0.79281502,29317.0,29314.0,0.1971732]
[1609472626036,0.96079502,29317.0,29314.0,0.1971732]
[1609472626245,0.17,29316.0,29314.0,0.1971732]
[1609472626738,2.911012,29315.0,29314.0,0.1971732]
[1609472627143,0.361012,29315.0,29314.0,0.1971732]
[1609472627339,1.411012,29315.0,29314.0,0.1971732]
[1609472627538,1.661012,29315.0,29314.0,0.1971732]
[1609472627761,0.611012,29315.0,29314.0,0.1971732]
[1609472627964,0.361012,29315.0,29314.0,0.1971732]
[1609472628162,0.1,29317.0,29314.0,0.1971732]
[1609472628465,1.161512,29315.0,29314.0,0.1971732]
[1609472628660,2.561512,29315.0,29314.0,0.1971732]
[1609472628863,2.96077012,29315.0,29314.0,0.1971732]
[1609472631360,1.56077012,29315.0,29314.0,0.1971732]
[1609472631558,2.96077012,29315.0,29314.0,0.1971732]
[1609472632164,1.56077012,29315.0,29314.0,0.1971732]
[1609472632864,0.41077012,29315.0,29314.0,0.1971732]
[1609472633062,0.22077012,29315.0,29314.0,0.1971732]
[1609472634713,2.41577012,29315.0,29314.0,0.1971732]
[1609472635504,2.4265323,29315.0,29314.0,0.1971732]
[1609472637476,3.0765323,29315.0,29314.0,0.1971732]
[1609472638373,2.4265323,29315.0,29314.0,0.1971732]
[1609472639478,5.46966418,29315.0,29314.0,0.1967732]
[1609472639781,0.361012,29308.0,29305.0,1.0]
[1609472640086,0.59498012,29306.0,29303.0,0.0004]
[1609472640386,3.861512,29301.0,29300.0,0.1037]
[1609472640578,5.34228402,29301.0,29300.0,0.1037]
[1609472640778,5.37575214,29301.0,29300.0,0.1037]
[1609472640983,5.38151947,29301.0,29300.0,0.1037]
[1609472641381,3.85,29300.0,29299.0,0.0002]
[1609472641588,6.38959398,29299.0,29297.0,0.0002]
[1609472641782,6.70310014,29298.0,29297.0,0.0002]
[1609472643200,3.85,29297.0,29296.0,0.0006]
[1609472643504,0.67995512,29295.0,29293.0,0.00050665]
[1609472643704,5.65310014,29294.0,29290.0,0.0004]
[1609472643905,5.65310014,29294.0,29290.0,0.25116207]
[1609472643906,0.2,29292.0,29290.0,0.25116207]
[1609472644102,0.13346812,29291.0,29290.0,0.25116207]
[1609472644300,0.1,29291.0,29290.0,0.25116207]
[1609472644502,0.1,29291.0,29290.0,0.61239107]
[1609472644704,0.1,29294.0,29290.0,0.61239107]
[1609472645108,0.361229,29293.0,29290.0,0.25116207]
[1609472645706,0.1,29294.0,29290.0,0.25116207]
[1609472645904,0.1,29294.0,29291.0,0.361229]
[1609472646112,0.01076733,29301.0,29291.0,0.589049]
[1609472646413,0.361257,29302.0,29300.0,0.27012452]
[1609472646808,0.361257,29307.0,29300.0,0.27012452]
[1609472647011,0.2,29307.0,29299.0,0.10026]
[1609472647204,0.361257,29309.0,29299.0,0.10026]
[1609472647602,0.00412206,29310.0,29297.0,0.5115]
[1609472647603,0.03346812,29310.0,29297.0,0.5115]
[1609472648202,0.03346812,29310.0,29298.0,0.361257]
[1609472648427,0.03346812,29310.0,29297.0,0.5115]
[1609472648826,0.03346812,29310.0,29298.0,0.361257]
[1609472649127,0.361257,29309.0,29297.0,0.5115]
[1609472649326,1.1116,29308.0,29297.0,0.5115]
[1609472649531,1.332857,29307.0,29297.0,0.5115]
[1609472649729,0.9766,29306.0,29297.0,0.5115]
[1609472649924,0.020888,29305.0,29297.0,0.5115]
[1609472650132,0.997488,29305.0,29297.0,0.5115]
[1609472650328,0.145,29304.0,29297.0,0.5115]
[1609472651227,0.145,29304.0,29298.0,0.361206]
[1609472651729,0.15576716,29304.0,29298.0,0.361206]
[1609472652173,0.01076716,29304.0,29298.0,0.361206]
[1609472654109,0.98736716,29304.0,29298.0,0.361206]
[1609472654309,0.01076716,29304.0,29298.0,0.361206]
[1609472655115,0.145,29302.0,29296.0,0.6819]
[1609472655315,1.1216,29302.0,29297.0,0.361206]
[1609472655518,0.9766,29302.0,29297.0,0.361206]
[1609472655813,0.9766,29302.0,29301.0,0.21287926]
[1609472656012,0.361206,29302.0,29301.0,0.21287926]
[1609472656511,1.886206,29302.0,29301.0,0.21287926]
[1609472657308,2.786206,29302.0,29301.0,0.21287926]
[1609472658238,1.886206,29302.0,29301.0,0.21287926]
[1609472658634,1.89697317,29302.0,29301.0,0.21287926]
[1609472659335,5.32357317,29302.0,29301.0,0.21287926]
[1609472659638,5.52357317,29302.0,29301.0,0.21287926]
[1609472659835,5.32357317,29302.0,29301.0,0.21287926]
[1609472660034,5.36324252,29302.0,29301.0,0.21287926]
[1609472660434,5.3297744,29302.0,29301.0,0.21287926]
[1609472660636,5.32357317,29302.0,29301.0,0.26287926]
[1609472660939,5.4508221,29302.0,29301.0,0.26287926]
[1609472661137,5.30857317,29302.0,29301.0,0.26287926]
[1609472661535,2.85857317,29302.0,29301.0,0.26287926]
[1609472661734,1.88197317,29302.0,29301.0,0.26287926]
[1609472662136,2.85857317,29302.0,29301.0,0.26287926]
[1609472662435,1.88197317,29302.0,29301.0,0.26287926]
[1609472664266,2.73197317,29302.0,29301.0,0.26287926]
[1609472664463,1.88197317,29302.0,29301.0,0.26287926]
[1609472665264,2.78197317,29302.0,29301.0,0.26287926]
[1609472665667,1.88197317,29302.0,29301.0,0.26287926]
[1609472665863,1.88197317,29302.0,29301.0,4.26287926]
[1609472666570,0.35697317,29302.0,29301.0,4.26287926]
[1609472667204,1.85697317,29302.0,29301.0,4.26287926]
[1609472667909,0.35697317,29302.0,29301.0,4.26287926]
[1609472668310,1.65697317,29302.0,29301.0,4.26287926]
[1609472668608,1.93197317,29302.0,29301.0,4.26287926]
[1609472669234,2.53197317,29302.0,29301.0,4.26287926]
[1609472669837,0.35697317,29302.0,29301.0,4.26422562]
[1609472670237,1.65697317,29302.0,29301.0,4.26422562]
[1609472671240,1.64697317,29302.0,29301.0,4.26422562]
[1609472671638,0.34697317,29302.0,29301.0,4.26422562]
[1609472672241,1.57697317,29302.0,29301.0,4.26422562]
[1609472673866,0.57697317,29302.0,29301.0,4.26422562]
[1609472674068,1.44697317,29302.0,29301.0,4.26422562]
[1609472674463,0.34697317,29302.0,29301.0,4.26422562]
[1609472674864,0.34197317,29302.0,29301.0,4.26422562]
[1609472675169,1.69197317,29302.0,29301.0,4.26422562]
[1609472675380,1.89197317,29302.0,29301.0,4.26422562]
[1609472676075,0.54197317,29302.0,29301.0,4.26422562]
[1609472676267,0.34197317,29302.0,29301.0,4.26422562]
[1609472676473,0.34613053,29302.0,29301.0,4.26422562]
[1609472677969,0.34113053,29302.0,29301.0,4.26422562]
[1609472678789,0.33613053,29302.0,29301.0,4.26422562]
[1609472679192,1.45113053,29302.0,29301.0,4.26422562]
[1609472679590,0.33613053,29302.0,29301.0,4.26422562]
[1609472679791,0.33820987,29302.0,29301.0,4.26422562]
[1609472680192,1.38820987,29302.0,29301.0,4.26422562]
[1609472680395,0.33820987,29302.0,29301.0,4.26422562]
[1609472680796,0.43197317,29302.0,29301.0,4.26422562]
[1609472680992,2.13197317,29302.0,29301.0,4.26422562]
[1609472681392,2.47697317,29302.0,29301.0,4.26422562]
[1609472683220,2.37697317,29302.0,29301.0,4.26422562]
[1609472683616,2.47697317,29302.0,29301.0,4.26422562]
[1609472684419,2.47697317,29302.0,29301.0,4.05134636]
[1609472684618,2.55266497,29302.0,29301.0,4.05134636]
[1609472688927,2.45266497,29302.0,29301.0,4.05134636]
[1609472691069,2.47697317,29302.0,29301.0,4.05134636]
[1609472691269,0.43197317,29302.0,29301.0,4.05134636]
[1609472691867,1.95746016,29302.0,29301.0,4.05134636]
[1609472692370,2.19197317,29302.0,29301.0,4.05134636]
[1609472692768,2.26746084,29302.0,29301.0,4.05134636]
[1609472692969,2.46746084,29302.0,29301.0,4.05134636]
[1609472693172,2.26746084,29302.0,29301.0,4.05134636]
[1609472693796,2.16746084,29302.0,29301.0,4.05134636]
[1609472694702,2.09197317,29302.0,29301.0,4.05134636]
[1609472694997,2.69197317,29302.0,29301.0,4.05134636]
[1609472695401,2.60357317,29302.0,29301.0,4.05134636]
[1609472695599,2.67905841,29302.0,29301.0,4.05134636]
[1609472699652,1.22905841,29302.0,29301.0,4.05134636]
[1609472699848,2.27905841,29302.0,29301.0,4.05134636]
[1609472701552,1.22905841,29302.0,29301.0,4.05134636]
[1609472703185,1.22905841,29302.0,29301.0,4.34634636]
[1609472703186,0.52236717,29302.0,29301.0,4.34634636]
[1609472703382,0.01076717,29302.0,29301.0,4.34634636]
[1609472703580,0.01076717,29302.0,29301.0,4.70755236]
[1609472703885,0.01700142,29302.0,29301.0,4.70755236]
[1609472704279,0.01700142,29302.0,29301.0,4.41255236]
[1609472704579,0.0211575,29302.0,29301.0,4.41255236]
[1609472704980,0.01492325,29302.0,29301.0,4.41255236]
[1609472706180,0.01492325,29302.0,29301.0,4.05134636]
[1609472706779,0.01492325,29302.0,29301.0,4.41255236]
[1609472707884,0.81492325,29302.0,29301.0,4.41255236]
[1609472708502,0.01492325,29302.0,29301.0,4.41255236]
[1609472708704,0.00623426,29302.0,29301.0,4.41255236]
[1609472709306,0.00623426,29302.0,29301.0,4.05134636]
[1609472709906,0.00623426,29302.0,29301.0,4.41255236]
[1609472710103,0.00623426,29302.0,29301.0,4.56755236]
[1609472710505,0.00623404,29303.0,29301.0,4.56755236]
[1609472710804,0.07588064,29305.0,29301.0,4.20634636]
[1609472711007,0.337153,29304.0,29301.0,4.20634636]
[1609472711208,0.07588064,29305.0,29301.0,4.20634636]
[1609472711607,0.00623363,29303.0,29302.0,0.35]
[1609472712276,0.00123363,29303.0,29301.0,4.05134636]
[1609472712479,0.337153,29305.0,29301.0,4.05134636]
[1609472712679,0.73637614,29306.0,29301.0,4.05134636]
[1609472712878,0.337153,29305.0,29301.0,4.05134636]
[1609472714081,3.887153,29302.0,29301.0,4.05134636]
[1609472714279,4.067223,29302.0,29301.0,4.05134636]
[1609472714476,4.702223,29302.0,29301.0,4.05134636]
[1609472714880,0.517223,29302.0,29301.0,4.05134636]
[1609472715079,1.028823,29302.0,29301.0,4.05134636]
[1609472715776,0.5116,29302.0,29301.0,4.05134636]
[1609472716399,0.5116,29302.0,29301.0,4.41255236]
[1609472717405,0.848753,29302.0,29301.0,4.05134636]
[1609472718500,0.5116,29302.0,29301.0,4.05134636]
[1609472719502,0.337153,29302.0,29301.0,4.05134636]
[1609472720705,0.987153,29302.0,29301.0,4.05134636]
[1609472720902,1.132153,29302.0,29301.0,4.05134636]
[1609472721106,1.26422903,29302.0,29301.0,4.05134636]
[1609472721530,2.01422903,29302.0,29301.0,4.05134636]